[Event "10th Cesme Open-A 2024"]
[Site "Cesme"]
[Date "2024.06.28"]
[Round "7"]
[White "Rasulov, Vugar"]
[Black "Yurtseven, Melih"]
[Result "1-0"]
[ECO "D32"]
[WhiteElo "2557"]
[BlackElo "2333"]
[Annotator "TA"]
[PlyCount "187"]
[EventDate "2024.06.23"]
[EventType "swiss"]
[EventCountry "TUR"]
[SourceTitle "playchess.com"]
[Source "ChessBase"]
[SourceQuality "1"]
[TimeControl "5400+30"]

{[%evp 66,187,39,0,281,0,44,0,0,0,70,69,60,60,60,60,109,104,429,250,245,169,135,9,8,11,8,0,436,436,436,436,436,436,436,436,436,436,436,436,436,436,436,436,436,436,436,436,429,429,429,429,429,429,429,429,364,362,345,341,429,421,436,436,436,436,436,429,421,421,421,420,5069,1545,29974,29975,29975,29977,29976,29978,29978,29979,29980,29980,29980,29978,29984,29985,29985,29983,29987,29984,29984,29985,29985,29978,29977,29977,29976,29978,29976,29979,29979,29974,29974,29975,29975,29976,29975,29977,29978,29975,29982,29983,29985,29983,29985,29982,29985,29986,29989,29990,29993,29994]} 1. c4 {[%emt 0:01:00]} e6 {[%emt 0:12:00]} 2. Nc3 {[%emt 0:00:30]} d5 {[%emt 0:00:30]} 3. d4 {[%emt 0:00:00]} c5 {[%emt 0:09:30]} 4. cxd5 {[%emt 0:00:00]} cxd4 {[%emt 0:01:30]} 5. Qa4+ {[%emt 0:00:30]} Bd7 {[%emt 0:00:00]} 6. Qxd4 {[%emt 0:00:00]} exd5 {[%emt 0:00:00]} 7. Nf3 {[%emt 0:00:00]} Nc6 {[%emt 0:05:30] D32: Tarrasch Defence: Sidelines and lines without g3.} 8. Qf4 $146 {[%emt 0:00:30]} ({Predecessor:} 8. Qxd5 Nf6 9. Qb3 Bb4 10. e3 O-O 11. Be2 Be6 12. Qc2 Rc8 13. O-O Qe7 14. Bd2 Bd6 15. Rfd1 Bb8 16. Qa4 Ng4 17. h3 {1-0 Shankland,S (2709)-Xiong,J (2710) Saint Louis Blitz 2021 (14)}) 8... Nf6 {[%emt 0:00:30]} 9. g3 {[%emt 0:02:30]} Nb4 {[%emt 0:10:30]} 10. Nd4 {[%emt 0:00:30]} Bc5 {[%emt 0:04:30]} 11. a3 {[%emt 0:00:30]} Bxd4 {[%emt 0:02:30]} 12. axb4 {[%emt 0:00:30]} Bb6 {[%emt 0:01:30]} 13. Be3 {[%emt 0:05:30]} O-O {[%emt 0:03:30]} 14. Bg2 {[%emt 0:03:30]} Be6 {[%emt 0:11:30]} 15. Bd4 {[%emt 0:02:30]} Rc8 {[%emt 0:05:30]} 16. Bxf6 {[%emt 0:10:30]} gxf6 {[%emt 0:00:00]} 17. O-O {[%emt 0:00:30]} Rc4 {[%emt 0:01:00]} 18. Qh6 {[%emt 0:02:30]} f5 {[%emt 0:01:30]} 19. e3 {[%emt 0:04:30]} Rg4 {[%emt 0:11:23]} 20. Rad1 {[%emt 0:01:30]} d4 {[%emt 0:00:09]} 21. Ne2 {[%emt 0:04:30]} Bc4 {[%emt 0:00:39]} 22. Bf3 {[%emt 0:00:30]} Rg6 {[%emt 0:01:35]} 23. Qf4 {[%emt 0:03:30]} Bxe2 {[%emt 0:01:13]} 24. Bxe2 {[%emt 0:01:30]} Qe7 {[%emt 0:00:45]} 25. Rxd4 {[%emt 0:08:30]} Bxd4 {[%emt 0:00:54]} 26. Qxd4 {[%emt 0:00:00]} Rd8 {[%emt 0:02:14]} 27. Qf4 {[%emt 0:00:00]} Rd2 {[%emt 0:00:28]} 28. Bh5 {[%emt 0:00:30]} Rg5 {[%emt 0:06:18]} 29. Bf3 {[%emt 0:00:30]} Rxb2 {[%emt 0:00:07]} 30. Rc1 {[%emt 0:00:30]} Rxb4 {[%emt 0:03:51]} 31. Qb8+ {[%emt 0:00:30]} Kg7 {[%emt 0:00:01]} 32. Rc7 {[%emt 0:01:30]} Qf8 {[%emt 0:02:22]} 33. Rc8 {[%emt 0:00:30]} Qe7 {[%emt 0:00:21]} 34. Re8 {[%emt 0:04:30]} Qc5 $2 {[%emt 0:01:42][%mdl 8192]} (34... Rb1+ $2 35. Kg2 $18) (34... Qf6 $1 $11) 35. Rc8 $2 {[%emt 0:02:30]} (35. Qd8 $1 $18 {[%cal Rd8g5]} Rg6 36. h4 (36. Rg8+ Kh6 $11)) 35... Qe7 $14 {[%emt 0:00:43]} 36. Bd5 {[%emt 0:03:30]} Rb1+ {[%emt 0:01:58]} 37. Kg2 {[%emt 0:00:30]} Rd1 {[%emt 0:00:12]} (37... Rb6 $1 $11) 38. Rc7 $14 {[%emt 0:03:30]} ({But not} 38. Bxb7 Rd2 39. Rg8+ Kh6 40. Rxg5 Kxg5 $15 (40... Qxg5 41. Qxa7 Qe7 42. Qb6+ Kg7 43. Qb3 $15)) 38... Qxc7 $1 {[%emt 0:00:38]} 39. Qxc7 {[%emt 0:00:30]} Rxd5 {[%emt 0:00:22]} 40. Qxb7 {[%emt 0:00:00]} Ra5 {[%emt 0:00:19]} (40... Rd6 $14 {might be stronger.}) 41. Qb2+ $16 {[%emt 0:00:00]} f6 $2 {[%emt 0:01:03][%mdl 8192]} (41... Kg8 $16) 42. Qb7+ {[%emt 0:00:30]} (42. Qb4 $142 f4 43. exf4) 42... Kh6 $18 {[%emt 0:00:08]} 43. Qc8 {[%emt 0:01:30]} Rg7 {[%emt 0:00:25]} 44. Qc3 {[%emt 0:01:30]} ({White should play} 44. Qd8 $1 $16 {[%cal Rd8a5]} Ra6 45. Qc8) 44... Re5 $11 {[%emt 0:00:13]} 45. f4 {[%emt 0:00:30]} Re6 {[%emt 0:00:21]} 46. e4 {[%emt 0:01:30]} fxe4 $2 {[%emt 0:01:04][%mdl 8192] [#]} (46... Rf7 $11 {and Black stays safe.}) 47. f5 $1 $18 {[%emt 0:00:30]} Re5 {[%emt 0:00:13]} 48. Qe3+ {[%emt 0:00:30]} Kh5 {[%emt 0:00:07] [#]} 49. h3 $1 {[%emt 0:00:30]} Rxf5 {[%emt 0:00:48]} 50. g4+ {[%emt 0:00:30]} ({Stronger than} 50. Qxe4 Re5 51. Qf3+ Kg6 $11) 50... Rxg4+ {[%emt 0:00:30]} 51. hxg4+ {[%emt 0:00:30]} Kxg4 {[%emt 0:00:00]} 52. Qxe4+ {[%emt 0:01:30]} Kg5 {[%emt 0:00:00]} 53. Kg3 {[%emt 0:01:30]} h5 {[%emt 0:00:22]} 54. Qd3 {[%emt 0:00:30]} a5 {[%emt 0:00:29]} 55. Qe4 {[%emt 0:01:30]} Re5 {[%emt 0:00:57]} 56. Qh7 {[%emt 0:00:30]} Re3+ {[%emt 0:00:04]} 57. Kf2 {[%emt 0:00:00]} Re5 {[%emt 0:00:09]} 58. Qg8+ {[%emt 0:00:00]} Kf4 {[%emt 0:01:45]} 59. Qg6 {[%emt 0:00:30]} Rf5 {[%emt 0:00:18]} 60. Qg7 {[%emt 0:00:30]} Ke4+ {[%emt 0:00:20]} 61. Ke2 {[%emt 0:00:30]} Kf4 {[%emt 0:00:07]} 62. Qg1 {[%emt 0:01:30]} a4 {[%emt 0:01:26]} 63. Qa7 {[%emt 0:00:30]} Kg3 {[%emt 0:00:30]} 64. Qxa4 {[%emt 0:00:30]} Rf2+ {[%emt 0:00:14]} 65. Ke1 {[%emt 0:00:30]} h4 {[%emt 0:00:51]} 66. Qb3+ {[%emt 0:00:30]} Rf3 {[%emt 0:00:05]} 67. Qg8+ {[%emt 0:00:30]} Kf4 {[%emt 0:01:11]} 68. Qh7 {[%emt 0:00:30]} Kg3 {[%emt 0:00:57]} (68... Kg5 $142 69. Qg7+ Kf5) 69. Qg7+ $18 {[%emt 0:00:00]} Kh2 {[%emt 0:00:09]} 70. Qg4 {[%emt 0:00:00]} Rg3 {[%emt 0:00:48]} 71. Qxh4+ {[%emt 0:00:30]} Kg2 {[%emt 0:00:00]} 72. Qxf6 {[%emt 0:00:30]} Re3+ {[%emt 0:00:00]} 73. Kd2 {[%emt 0:00:30]} Rf3 {[%emt 0:00:10]} 74. Qg5+ {[%emt 0:00:00]} Rg3 {[%emt 0:00:08]} 75. Qh4 {[%emt 0:00:00]} Rh3 {[%emt 0:00:11]} 76. Qe4+ {[%emt 0:00:30]} Kf2 {[%emt 0:02:31]} 77. Qf4+ {[%emt 0:00:00]} Kg1 {[%emt 0:00:19]} 78. Qg4+ {[%emt 0:00:00]} Kh2 {[%emt 0:00:13]} 79. Ke2 {[%emt 0:00:30]} Rg3 {[%emt 0:00:00]} 80. Qf4 {[%emt 0:00:30]} Kh3 {[%emt 0:00:01]} 81. Qh6+ {[%emt 0:01:30]} Kg4 {[%emt 0:00:09]} 82. Qd6 {[%emt 0:00:30]} Kh4 {[%emt 0:01:09]} 83. Kf2 {[%emt 0:00:00]} Rg5 {[%emt 0:00:17]} 84. Qe6 {[%emt 0:02:00]} Rf5+ {[%emt 0:00:00]} 85. Ke3 {[%emt 0:00:00]} Kg5 {[%emt 0:00:26]} 86. Qe7+ {[%emt 0:00:00]} Kg6 {[%emt 0:00:30]} 87. Ke4 {[%emt 0:00:00]} Rf7 {[%emt 0:00:11]} 88. Qd8 {[%emt 0:00:00]} Rg7 {[%emt 0:02:23]} 89. Ke5 {[%emt 0:00:30]} Kh7 {[%emt 0:00:20]} 90. Qe8 {[%emt 0:00:30]} Rg8 {[%emt 0:00:42]} 91. Qh5+ {[%emt 0:00:30]} Kg7 {[%emt 0:00:30]} 92. Ke6 {[%emt 0:00:30]} Ra8 {[%emt 0:00:30]} 93. Qg4+ {[%emt 0:00:00]} Kh8 {[%emt 0:00:50]} 94. Qh3+ {[%emt 0:00:00]} 1-0

[Event "10th Cesme Open-A 2024"]
[Site "Cesme"]
[Date "2024.06.28"]
[Round "7"]
[White "Isik, Alparslan"]
[Black "Kharitonov, Alexandr"]
[Result "1/2-1/2"]
[ECO "B12"]
[WhiteElo "2469"]
[BlackElo "2522"]
[Annotator "TA"]
[PlyCount "30"]
[EventDate "2024.06.23"]
[EventType "swiss"]
[EventCountry "TUR"]
[SourceTitle "playchess.com"]
[Source "ChessBase"]
[SourceQuality "1"]
[TimeControl "5400+30"]

{[%evp 9,30,14,28,0,0,20,7,0,42,25,39,50,36,33,35,7,-7,0,0,0,0,-32,-31]} 1. e4 {[%emt 0:01:00]} c6 {[%emt 0:01:00]} 2. d4 {[%emt 0:00:30]} d5 {[%emt 0:00:00]} 3. e5 {[%emt 0:00:00]} Bf5 {[%emt 0:01:00]} 4. h4 {[%emt 0:00:00]} h6 {[%emt 0:04:30]} 5. g4 {[%emt 0:00:30]} Bd7 {[%emt 0:00:30][%cal Oh6h5]} 6. Nc3 {[%emt 0:00:30]} e6 {[%emt 0:00:30]} 7. Be3 {[%emt 0:00:30]} Qb6 {[%emt 0:00:30]} 8. Na4 {[%emt 0:00:30] The position is equal.} Qc7 {[%emt 0:00:30]} (8... Qa5+ $5 9. c3 Qc7 $14) 9. h5 {[%emt 0:01:30]} c5 {[%emt 0:04:30]} 10. Nxc5 {[%emt 0:04:30]} Bxc5 {[%emt 0:00:30]} 11. dxc5 {[%emt 0:00:30]} Qxe5 {[%emt 0:00:00][%cal Og8f6]} 12. Nf3 {[%emt 0:04:30]} Qc7 {[%emt 0:00:00]} 13. Qd4 {[%emt 0:18:30]} f6 $1 {[%emt 0:01:30]} 14. O-O-O {[%emt 0:03:30]} Nc6 {[%emt 0:01:30]} 15. Qd2 {[%emt 0:00:30]} Nge7 {[%emt 0:00:00] Weighted Error Value: White=0.14 (very precise) /Black=0.05 (flawless) .  Inaccurate:     	White=2     	Black=1      OK:         	White=3     	Black=4      Strong:       	---       	Black=1} 1/2-1/2

[Event "10th Cesme Open-A 2024"]
[Site "Cesme"]
[Date "2024.06.28"]
[Round "7"]
[White "Annaberdiyev, Meylis"]
[Black "Selbes, Tamer Tarik"]
[Result "0-1"]
[ECO "C55"]
[WhiteElo "2467"]
[BlackElo "2183"]
[Annotator "TA"]
[PlyCount "88"]
[EventDate "2024.06.23"]
[EventType "swiss"]
[EventCountry "TUR"]
[SourceTitle "playchess.com"]
[Source "ChessBase"]
[SourceQuality "1"]
[TimeControl "5400+30"]

{[%evp 12,88,59,51,58,30,61,23,47,25,43,19,14,4,59,54,59,50,77,42,33,44,60,-8,-7,-10,-6,0,-11,0,0,0,-6,-7,0,-89,-77,-88,-76,-75,-72,-76,-77,-179,-166,-164,-177,-231,-234,-239,-239,-229,-182,-180,-180,-182,-176,-180,-165,-190,-125,-352,-352,-345,-304,-304,-289,-509,-509,-509,-502,-502,-494,-494,-472,-458,-399,-385,-377]} 1. e4 {[%emt 0:02:00]} e5 {[%emt 0:01:00]} 2. Nf3 {[%emt 0:00:30]} Nc6 {[%emt 0:00:00]} 3. Bc4 {[%emt 0:00:00]} Nf6 {[%emt 0:00:00]} 4. d3 {[%emt 0:00:00][%cal Bd2d3,Bd3d4][%mdl 32]} h6 {[%emt 0:01:30]} 5. O-O {[%emt 0:00:30]} d6 {[%emt 0:00:30]} 6. c3 {[%emt 0:01:30]} g6 {[%emt 0:00:30]} 7. d4 {[%emt 0:00:30]} Qe7 {[%emt 0:00:30]} 8. b4 {[%emt 0:02:30][%cal Bb2b4,Bb4b5][%mdl 32]} a6 {[%emt 0:01:30]} 9. a4 {[%emt 0:01:30]} Bg7 {[%emt 0:00:30] White has an edge.} 10. Ba3 {[%emt 0:05:30]} Bg4 {[%emt 0:03:30] And now ...exd4 would win.} 11. b5 {[%emt 0:01:30]} Na5 {[%emt 0:00:30]} 12. Ba2 {[%emt 0:01:30]} Bxf3 {[%emt 0:01:30]} (12... Nxe4 $11 13. Re1 Ng5) 13. Qxf3 $14 {[%emt 0:00:30]} O-O {[%emt 0:00:30]} 14. Nd2 {[%emt 0:08:30]} Kh7 {[%emt 0:02:30]} 15. Bb4 {[%emt 0:01:30]} axb5 {[%emt 0:01:30]} 16. axb5 {[%emt 0:00:00]} Nd7 {[%emt 0:12:30]} 17. Bb1 {[%emt 0:04:00] [#]} ({White should play} 17. Qd3 $14) 17... Nc4 $1 $11 {[%emt 0:01:30]} 18. Rxa8 {[%emt 0:01:30]} (18. Nxc4 $2 Rxa1 19. Qd3 Rd8 $19) 18... Nxd2 {[%emt 0:00:30] A dynamic duo of knights.} 19. Qd3 {[%emt 0:00:00] Strongly threatening Rxf8.} Rxa8 {[%emt 0:00:30]} 20. Qxd2 {[%emt 0:00:00]} c5 {[%emt 0:03:30]} 21. bxc6 {[%emt 0:00:00]} bxc6 {[%emt 0:00:30][%cal Bb7c6,Bc6c5][%mdl 32] Hoping for ...c5.} 22. dxe5 {[%emt 0:12:00]} c5 {[%emt 0:02:30]} 23. Qd5 {[%emt 0:00:30]} (23. Qxd6 $2 {perishes.} Bf8 (23... Qxe5 24. Qxd7 cxb4 25. cxb4 $16) (23... Qxd6 $2 24. exd6 cxb4 25. cxb4 $19) 24. f4 (24. Qxe7 $2 Bxe7 25. f4 cxb4 $19) 24... Qe8 $19 (24... cxb4 $2 25. cxb4 Ra4 26. Rd1 $17)) (23. exd6 $11 Qd8 24. Bxc5 Nxc5 25. f4) 23... Ra7 $36 {[%emt 0:00:30][%mdl 2048] Black is really pushing.} 24. exd6 {[%emt 0:01:30]} Qe6 {[%emt 0:00:00]} 25. Qxe6 {[%emt 0:00:30]} (25. Bxc5 $2 {is the wrong capture.} Qxd5 26. exd5 Nxc5 $19) 25... fxe6 {[%emt 0:00:00]} 26. f4 {[%emt 0:00:30][%cal Ob4c5]} cxb4 {[%emt 0:00:30]} 27. cxb4 {[%emt 0:00:30]} (27. e5 $17 {is a better defense.}) 27... Bd4+ $19 {[%emt 0:00:30]} 28. Kh1 {[%emt 0:00:30]} e5 {[%emt 0:00:30]} 29. Bd3 {[%emt 0:00:30]} (29. g3 {was worth a try.}) 29... exf4 {[%emt 0:00:30]} 30. Rxf4 {[%emt 0:00:30]} Kg7 {[%emt 0:00:30] Against Rf7+} 31. Rf1 {[%emt 0:00:30]} Ra1 {[%emt 0:00:30]} 32. Rxa1 {[%emt 0:00:30]} Bxa1 {[%emt 0:00:30]} 33. Bb5 {[%emt 0:00:30]} Ne5 {[%emt 0:00:30]} 34. d7 {[%emt 0:00:30]} Nf7 {[%emt 0:06:30]} 35. h4 {[%emt 0:24:30]} Kf6 {[%emt 0:00:30]} (35... Bc3 $19 36. h5 Bxb4 37. hxg6 Kxg6) 36. h5 $2 {[%emt 0:00:30] [#] This move loses the game for White.} g5 $1 {[%emt 0:00:00]} ({Not} 36... gxh5 37. Bc4 Nd8 38. Kh2 $19) 37. Bc4 {[%emt 0:00:30] aiming for Bxf7.} Nd8 {[%emt 0:00:00]} 38. Kh2 {[%emt 0:00:30]} Ke7 {[%emt 0:00:30]} 39. Bb5 $2 {[%emt 0:00:30]} (39. Kg3) 39... Bc3 {[%emt 0:00:30]} 40. Kg3 {[%emt 0:00:30]} Bxb4 {[%emt 0:00:00]} 41. Kg4 {[%emt 0:00:30]} Ke6 {[%emt 0:00:00]} (41... Nf7 $2 42. Be2 $19) 42. Bc4+ {[%emt 0:00:00]} Ke5 {[%emt 0:01:30]} (42... Kxd7 $2 43. Kf5 $19) 43. Bd5 {[%emt 0:00:00]} Ba5 {[%emt 0:00:30]} 44. Kf3 {[%emt 0:00:00]} Ne6 {[%emt 0:00:00] Weighted Error Value: White=0.30/Black=0.10 (very precise) .  Loses game:     	White=1     	---        Mistake:       	White=5     	Black=2      Inaccurate:     	White=3     	Black=2      OK:         	White=10    	Black=17     Best:        	White=4     	Black=3      Strong:       	---       	Black=1      Brilliant:      	---       	Black=1} 0-1

[Event "10th Cesme Open-A 2024"]
[Site "Cesme"]
[Date "2024.06.28"]
[Round "7"]
[White "Fromm, Marius"]
[Black "Schekachikhin, Maksim"]
[Result "0-1"]
[ECO "C60"]
[WhiteElo "2465"]
[BlackElo "2343"]
[Annotator "TA"]
[PlyCount "52"]
[EventDate "2024.06.23"]
[EventType "swiss"]
[EventCountry "TUR"]
[SourceTitle "playchess.com"]
[Source "ChessBase"]
[SourceQuality "1"]
[TimeControl "5400+30"]

{[%evp 9,52,43,59,-19,-17,-14,-14,-122,-53,-135,-124,-150,-150,-193,-195,-164,-81,-100,-84,-147,-104,-163,-145,-169,-168,-208,-132,-147,-157,-241,-250,-487,-487,-484,-487,-1396,-1339,-1183,-1138,-29991,-29991,-29993,-29994,-29994,-29995]} 1. e4 {[%emt 0:01:00]} e5 {[%emt 0:01:00]} 2. Nf3 {[%emt 0:00:00]} Nc6 {[%emt 0:00:30]} 3. Bb5 {[%emt 0:00:00]} Nge7 {[%emt 0:00:00]} 4. c3 {[%emt 0:03:30]} d5 {[%emt 0:01:00][%cal Bd7d5,Bd5e4,Be4d3][%mdl 32]} 5. Nxe5 {[%emt 0:11:30]} dxe4 {[%emt 0:00:30]} 6. d4 {[%emt 0:05:30]} (6. Qe2 $14) 6... exd3 $11 {[%emt 0:10:30] White must now prevent ...Qd5.} 7. Qf3 {[%emt 0:14:30]} (7. Nxc6 {simplifies} Nxc6 8. Bxd3 Bg4 9. Qc2) 7... Be6 {[%emt 0:01:30]} 8. c4 {[%emt 0:01:30] Prevents Bd5.} (8. O-O $11 {keeps the balance.}) 8... a6 {[%emt 0:16:30]} ({Black should play} 8... Qd6 $17 9. Bf4 g5) 9. Ba4 {[%emt 0:12:30]} (9. Nxc6 $15 Nxc6 10. Bxc6+ bxc6 11. Qxc6+ Bd7 12. Qd5) 9... Qd6 $17 {[%emt 0:05:30]} 10. Nxc6 {[%emt 0:10:30]} Nxc6 {[%emt 0:01:30]} 11. Bf4 {[%emt 0:00:30] Inhibits Qe5+.} Qb4+ {[%emt 0:08:30]} 12. Nc3 {[%emt 0:00:30]} O-O-O {[%emt 0:00:30]} (12... Qxb2 13. Bxc6+ Ke7 14. O-O (14. Bxb7 $2 {loses.} Qxc3+ 15. Bd2 Qxa1+ $19) 14... Qxc3 15. Rfe1 (15. Bxb7 Re8 $18) 15... bxc6 16. Qxc6 $18) (12... Qxc4 $19 {is more deadly. Strongly threatening ...0-0-0.} 13. Bxc6+ Qxc6 14. Qxc6+ bxc6 15. Bxc7 c5) 13. Bxc6 {[%emt 0:00:30]} bxc6 {[%emt 0:00:30]} 14. O-O {[%emt 0:06:30]} (14. Qxc6 $142 Qxc4 15. Qa8+ Kd7 16. Qe4) 14... Bd6 {[%emt 0:06:30] Black is more active.} ({Much less strong is} 14... Bxc4 15. Qxc6 Bd6 16. Bg5 $17) 15. Bxd6 {[%emt 0:04:30]} (15. Bd2 $17) 15... Rxd6 $19 {[%emt 0:00:30]} 16. Ne4 {[%emt 0:00:30] [#] Hoping for a3.} Rd4 {[%emt 0:00:30]} 17. Qe3 {[%emt 0:00:30]} Qxc4 {[%emt 0:05:30]} 18. Nd2 {[%emt 0:00:30]} Qd5 {[%emt 0:01:30]} 19. Rfc1 {[%emt 0:01:30]} (19. Rfd1 $17 {might work better.}) 19... Re8 {[%emt 0:09:30]} 20. Nb3 $2 {[%emt 0:00:30]} (20. Rc3) 20... Rg4 {[%emt 0:02:30]} 21. g3 {[%emt 0:00:30]} Re4 {[%emt 0:04:30]} 22. Qa7 {[%emt 0:00:30]} (22. Rc5 $142) 22... Bh3 {[%emt 0:00:30][%cal Oe4e1]} 23. f3 {[%emt 0:03:30]} Re2 {[%emt 0:02:30] [#] ( -> ...Rg2+)} 24. Qa8+ {[%emt 0:02:46]} Kd7 {[%emt 0:00:30] Black mates.} 25. Qxa6 {[%emt 0:00:00]} Rg2+ {[%emt 0:00:30]} 26. Kh1 {[%emt 0:00:00]} Ree2 {[%emt 0:00:30] Weighted Error Value: White=0.93/Black=0.17 (very precise) .  Mistake:       	White=7     	Black=2      Inaccurate:     	---       	Black=1      OK:         	White=4     	Black=7      Best:        	White=2     	Black=3} 0-1

[Event "10th Cesme Open-A 2024"]
[Site "Cesme"]
[Date "2024.06.28"]
[Round "7"]
[White "Kilic, Eray"]
[Black "Koksal, Ege"]
[Result "1/2-1/2"]
[ECO "D02"]
[WhiteElo "2443"]
[BlackElo "2297"]
[Annotator "TA"]
[PlyCount "95"]
[EventDate "2024.06.23"]
[EventType "swiss"]
[EventCountry "TUR"]
[SourceTitle "playchess.com"]
[Source "ChessBase"]
[SourceQuality "1"]
[TimeControl "5400+30"]

{[%evp 10,95,25,20,35,39,34,47,42,38,50,43,50,53,49,54,67,68,66,59,56,29,26,30,24,21,27,14,24,14,16,9,14,11,31,18,12,0,0,-24,-12,-23,0,-20,0,-18,0,-7,0,0,0,0,0,0,0,0,0,0,0,-3,-3,-26,-25,-25,-3,-3,-3,-3,-3,-3,-3,-9,-3,-3,-3,-3,-3,-3,-2,-3,-3,-3,-3,-3,-3,-3,-3,-7]} 1. d4 {[%emt 0:01:00]} d5 {[%emt 0:08:00]} 2. Nf3 {[%emt 0:00:30]} Nf6 {[%emt 0:00:30]} 3. Bf4 {[%emt 0:00:00]} c6 {[%emt 0:04:30]} 4. e3 {[%emt 0:00:00]} Bf5 {[%emt 0:00:30]} 5. c4 {[%emt 0:00:00]} e6 {[%emt 0:00:30]} 6. Qb3 {[%emt 0:00:00]} Qc8 {[%emt 0:00:30]} 7. Nc3 {[%emt 0:00:00]} Nbd7 {[%emt 0:00:30]} 8. cxd5 {[%emt 0:00:00]} Nxd5 {[%emt 0:08:30] White is slightly better.} 9. Bg3 {[%emt 0:02:30]} Bb4 {[%emt 0:05:30][%cal Bf8b4,Bb4a5,Ba5c7][%mdl 32]} 10. Be2 {[%emt 0:04:30]} O-O {[%emt 0:00:30]} 11. O-O {[%emt 0:00:30] [#] Nxd5 would now be deadly.} Ba5 {[%emt 0:01:30]} 12. Nh4 {[%emt 0:04:30] Strongly threatening Nxd5.} Nxc3 {[%emt 0:06:30]} 13. bxc3 {[%emt 0:00:30]} Bc7 {[%emt 0:00:00] Prevents Bd6.} 14. Nxf5 {[%emt 0:01:30]} exf5 {[%emt 0:00:00]} 15. Bd3 {[%emt 0:01:30]} g6 {[%emt 0:01:30]} 16. Rab1 {[%emt 0:07:30]} Bxg3 {[%emt 0:02:30]} 17. hxg3 {[%emt 0:05:30]} b6 {[%emt 0:00:30]} 18. Be2 {[%emt 0:02:30]} h5 {[%emt 0:04:30]} 19. Bf3 {[%emt 0:01:30]} Qc7 {[%emt 0:00:30]} 20. c4 {[%emt 0:01:30]} Rab8 {[%emt 0:03:30]} 21. Rfd1 {[%emt 0:03:30]} Rfd8 {[%emt 0:00:30]} 22. Rd3 {[%emt 0:04:30]} Nf6 {[%emt 0:07:30]} 23. Qa4 {[%emt 0:03:30]} c5 {[%emt 0:02:30]} 24. Qc6 {[%emt 0:01:30]} Qe7 {[%emt 0:02:30]} 25. Rbd1 {[%emt 0:01:30]} Rd6 {[%emt 0:00:30]} 26. Qa4 {[%emt 0:01:30]} Rbd8 {[%emt 0:00:30]} 27. Qa3 {[%emt 0:03:30]} Kg7 {[%emt 0:02:30]} 28. Qc3 {[%emt 0:02:30]} Kg8 {[%emt 0:00:00]} 29. R3d2 {[%emt 0:05:30]} Ne4 {[%emt 0:03:00]} 30. Bxe4 {[%emt 0:00:30]} Qxe4 {[%emt 0:00:30]} 31. d5 {[%emt 0:01:30]} b5 {[%emt 0:03:30]} 32. cxb5 {[%emt 0:01:30]} Rxd5 {[%emt 0:00:30]} 33. Rxd5 {[%emt 0:02:30]} Rxd5 $11 {[%emt 0:00:00][%mdl 4096] Endgame. KQR-KQR} 34. Rc1 {[%emt 0:04:30]} Qb4 {[%emt 0:02:00]} 35. Qxb4 {[%emt 0:03:30]} cxb4 {[%emt 0:00:30] KR-KR} 36. Rc7 {[%emt 0:00:00]} Rxb5 {[%emt 0:00:30]} 37. Rxa7 {[%emt 0:00:00] The position is equal.} Rc5 {[%emt 0:00:30][%cal Bb5c5,Bc5c2,Bc2b2,Bb2b1,Bb1a1][%mdl 32]} 38. Kf1 {[%emt 0:00:30]} Rc2 {[%emt 0:00:30]} 39. Ke1 {[%emt 0:00:30]} Kg7 {[%emt 0:00:30]} 40. Ra6 {[%emt 0:00:30]} Kh6 {[%emt 0:01:30]} 41. Ra4 {[%emt 0:01:30]} Rb2 {[%emt 0:00:00]} 42. a3 {[%emt 0:00:00]} b3 {[%emt 0:01:00]} (42... bxa3 {simplifies} 43. Rxa3 Kg7 44. Ra1 Rc2) 43. Rb4 {[%emt 0:00:00]} Rb1+ {[%emt 0:01:30]} 44. Ke2 {[%emt 0:00:30]} b2 {[%emt 0:00:00]} 45. a4 {[%emt 0:00:30]} Kg5 {[%emt 0:00:00]} 46. a5 {[%emt 0:00:30]} Kf6 {[%emt 0:00:00]} 47. a6 {[%emt 0:00:30]} Ra1 {[%emt 0:00:00]} 48. Rxb2 {[%emt 0:00:30] Weighted Error Value: White=0.05 (flawless) /Black=0.04 (flawless) .  Inaccurate:     	White=1     	---        OK:         	White=16    	Black=16     Best:        	White=2     	---} 1/2-1/2